[Event "44th Chess Olympiad Open 2022"]
[Site "Chennai"]
[Date "2022.07.29"]
[Round "1.7"]
[White "Mansour, Sameer"]
[Black "Van Foreest, Jorden"]
[Result "0-1"]
[WhiteElo "2275"]
[BlackElo "2678"]
[Annotator "TA"]
[PlyCount "64"]
[EventDate "2022.??.??"]
[TimeControl "60"]

{[%evp 22,64,0,0,0,0,0,-18,0,-15,0,-15,-6,-12,-8,-10,-5,-12,-4,-3,-4,-17,-32,
-508,-526,-517,-508,-537,-389,-427,-400,-544,-531,-514,-455,-441,-372,-431,
-415,-415,-416,-423,-418,-384,-364]} 1. d4 {[%emt 0:00:06]} Nf6 {[%emt 0:00:12]
} 2. c4 {[%emt 0:00:11]} g6 {[%emt 0:00:12]} 3. Nc3 {[%emt 0:00:32]} Bg7 {
[%emt 0:00:09]} 4. Nf3 {[%emt 0:01:47]} O-O {[%emt 0:00:40]} 5. Bg5 {[%emt 0:
00:00]} h6 {[%emt 0:00:08]} 6. Bh4 {[%emt 0:01:14]} d6 {[%emt 0:02:39]} 7. e3 {
[%emt 0:01:39]} c5 {[%emt 0:00:51]} 8. Be2 {[%emt 0:02:44]} g5 {[%emt 0:01:40]}
9. Bg3 {[%emt 0:00:19]} Nh5 {[%emt 0:00:17]} 10. dxc5 {[%emt 0:05:13]} Nxg3 {
[%emt 0:02:38]} 11. hxg3 {[%emt 0:07:41]} dxc5 {[%emt 0:00:07]} 12. Qc2 {
[%emt 0:04:03] [#] aiming for Rd1.} e6 {[%emt 0:00:04] E61: King's Indian:
Early deviations for White, including Smyslov System.} 13. Nd2 {[%emt 0:00:34]}
Nc6 {[%emt 0:04:04]} 14. Nde4 {[%emt 0:07:47]} Qe7 {[%emt 0:12:18] The
position is equal.} 15. g4 {[%emt 0:08:03]} Rd8 {[%emt 0:08:41]} 16. Ng3 {
[%emt 0:07:56]} b6 {[%emt 0:00:44]} 17. Nh5 {[%emt 0:02:38] [#]} Bh8 $146 {
[%emt 0:03:51]} ({Predecessor:} 17... Bb7 18. f3 Nb4 19. Qb3 Qd6 20. Rd1 Qe7
21. Kf2 Rxd1 22. Rxd1 Rd8 23. Nxg7 Kxg7 {1-0 (38) Schussler,H (2365)-Juhnke,K
Germany 1980}) 18. Ng3 {[%emt 0:12:05] Pair of Knights!} Nb4 {[%emt 0:03:50]}
19. Qb1 {[%emt 0:01:07]} Bg7 {[%emt 0:00:51]} 20. a3 {[%emt 0:01:02]} Nc6 {
[%emt 0:00:07][%cal Yb4c6,Yc6e5,Ye5d3]} 21. Qe4 {[%emt 0:04:37]} Bb7 {[%emt 0:
00:21] Hoping for ...Ne5.} 22. Bd3 $2 {[%emt 0:04:00] [#] This move loses the
game for White.} (22. Qc2 $1 $15) 22... f5 $1 $19 {[%emt 0:00:00]} 23. Nxf5 {
[%emt 0:04:46]} exf5 {[%emt 0:00:10]} 24. Qxf5 {[%emt 0:00:00]} Ne5 {[%emt 0:
01:51]} 25. Qh7+ {[%emt 0:02:21]} Kf8 {[%emt 0:00:10]} 26. O-O-O {[%emt 0:04:
58]} Nxd3+ {[%emt 0:02:37]} 27. Rxd3 {[%emt 0:00:09]} Rxd3 {[%emt 0:00:45]} 28.
Qxd3 {[%emt 0:00:09]} Rd8 {[%emt 0:00:40]} 29. Qf5+ {[%emt 0:01:03]} Kg8 {
[%emt 0:01:08] White must now prevent ...Bxc3.} 30. Nd5 {[%emt 0:01:27]} Bxd5 {
[%emt 0:00:27]} 31. cxd5 {[%emt 0:00:07]} Rf8 {[%emt 0:00:00]} 32. Qc2 {
[%emt 0:01:16]} Qf7 {[%emt 0:00:23][%csl Yd5,Yf2] Weighted Error Value:
White=0.42/Black=0.12 (very precise)} 0-1

[Event "44th Chess Olympiad Open 2022"]
[Site "Chennai"]
[Date "2022.07.29"]
[Round "1.7"]
[White "Aboudi, Marwan"]
[Black "Bok, Benjamin"]
[Result "0-1"]
[WhiteElo "2144"]
[BlackElo "2616"]
[Annotator "RC"]
[PlyCount "22"]
[EventDate "2022.??.??"]
[TimeControl "60"]

1. d4 {[%emt 0:00:06]} Nf6 {[%emt 0:00:06]} 2. Nf3 {[%emt 0:00:10]} d5 {
[%emt 0:00:09]} 3. c4 {[%emt 0:00:21]} e6 {[%emt 0:00:05]} 4. Nc3 {[%emt 0:00:
00]} dxc4 {[%emt 0:00:06]} 5. e3 {[%emt 0:00:39]} a6 {[%emt 0:00:05]} 6. Bxc4 {
[%emt 0:00:20]} b5 {[%emt 0:00:03]} 7. Be2 {[%emt 0:00:36]} Bb7 {[%emt 0:00:11]
} 8. a3 {[%emt 0:05:21]} c5 {[%emt 0:12:48]} 9. dxc5 {[%emt 0:02:40]} Qd5 {
[%emt 0:01:38]} 10. Qd3 Qxd3 {[%emt 0:00:31]} 11. Bd1 {[%emt 0:06:50]} Qxd1+ {
[%emt 0:00:06]} 0-1

[Event "44th Chess Olympiad Open 2022"]
[Site "Chennai"]
[Date "2022.07.29"]
[Round "1.8"]
[White "Volokitin, Andrei"]
[Black "Kulpruethanon, Thanadon"]
[Result "1-0"]
[WhiteElo "2674"]
[BlackElo "2294"]
[Annotator "TA"]
[PlyCount "42"]
[EventDate "2022.??.??"]
[TimeControl "60"]

{[%evp 29,42,26,48,27,29,36,43,35,44,37,38,-14,634,631,1410]} 1. e4 {[%emt 0:
00:00]} e5 {[%emt 0:00:06]} 2. Nf3 {[%emt 0:00:08]} Nc6 {[%emt 0:00:06]} 3. Bb5
{[%emt 0:00:11]} a6 {[%emt 0:00:11]} 4. Ba4 {[%emt 0:00:11]} Nf6 {[%emt 0:00:
00]} 5. O-O {[%emt 0:00:11]} Be7 {[%emt 0:00:19]} 6. Re1 {[%emt 0:00:21]} b5 {
[%emt 0:00:15]} 7. Bb3 {[%emt 0:00:06]} d6 {[%emt 0:00:11]} 8. c3 {[%emt 0:00:
00]} O-O {[%emt 0:00:13]} 9. h3 {[%emt 0:00:09]} Re8 {[%emt 0:01:19]} 10. d4 {
[%emt 0:00:16]} Bb7 {[%emt 0:00:41]} 11. Nbd2 {[%emt 0:00:34]} Bf8 {[%emt 0:00:
00]} 12. a3 {[%emt 0:04:28]} h6 {[%emt 0:00:37]} 13. Bc2 {[%emt 0:00:34]} Nb8 {
[%emt 0:00:58][%cal Yc6b8,Yb8d7,Yd7b6]} 14. b4 {[%emt 0:01:32]} Nbd7 {[%emt 0:
01:42]} 15. Bb2 {[%emt 0:00:21]} g6 {[%emt 0:09:29]} 16. a4 {[%emt 0:00:00]
C93: Closed Ruy Lopez: Smyslov Variation.} Nb6 {[%emt 0:12:41]} 17. dxe5 {
[%emt 0:06:50]} dxe5 {[%emt 0:00:36]} 18. axb5 {[%emt 0:00:18]} axb5 {[%emt 0:
00:00]} 19. Qe2 {[%emt 0:00:14]} c6 {[%emt 0:26:21] [#]} 20. Ra5 $146 {[%emt 0:
00:00]} ({Better is} 20. Rxa8 $14 Qxa8 21. Bb3) ({Predecessor:} 20. Rxa8 Bxa8
21. Qe3 Nbd7 22. Ra1 Qb6 23. Qxb6 Nxb6 24. Ra6 Nfd7 25. Bc1 c5 26. bxc5 Bxc5 {
½-½ (37) Drake Diez De Rivera,P (2555)-Marczell,P (2577) ICCF email 2007})
20... Ra7 $2 {[#]} 21. Rxa7 $18 {[%emt 0:00:26]} Qa8 {[%emt 0:00:00] Weighted
Error Value: White=0.20 (precise) /Black=1.33} 1-0

[Event "44th Chess Olympiad Open 2022"]
[Site "Chennai"]
[Date "2022.07.29"]
[Round "1.8"]
[White "Shevchenko, Kirill"]
[Black "Arunnuntapanich, Tinnakrit"]
[Result "1-0"]
[WhiteElo "2654"]
[BlackElo "2117"]
[Annotator "TA"]
[PlyCount "81"]
[EventDate "2022.??.??"]
[TimeControl "60"]

{[%evp 14,81,16,17,25,22,22,18,26,27,41,25,67,50,62,49,121,119,122,122,118,117,
120,117,124,111,120,141,145,156,156,147,186,178,233,224,225,227,199,211,247,
226,228,212,376,367,374,366,427,443,466,461,546,560,552,547,543,539,539,524,
660,660,682,621,5097,5097,5073,4141,2011,1797]} 1. e4 {[%emt 0:00:03]} c5 {
[%emt 0:00:20]} 2. c3 {[%emt 0:00:05]} d5 {[%emt 0:04:06]} 3. exd5 {[%emt 0:00:
00]} Qxd5 {[%emt 0:00:09]} 4. d4 {[%emt 0:00:05]} Nf6 {[%emt 0:00:38]} 5. Nf3 {
[%emt 0:00:19]} e6 {[%emt 0:04:54]} 6. Na3 {[%emt 0:00:52]} cxd4 {[%emt 0:00:
00]} 7. Nb5 {[%emt 0:03:56]} Na6 {[%emt 0:01:25]} 8. Qxd4 {[%emt 0:04:40]} Qxd4
{[%emt 0:04:49] is the legacy move (8...Bc5). B22: Sicilian: 2 c3.} (8... Be7 {
feels hotter.} 9. Bg5 Qxd4 10. Nbxd4 Nc5) 9. Nfxd4 {[%emt 0:02:36]} Be7 {
[%emt 0:02:37]} 10. Bf4 {[%emt 0:05:51]} O-O {[%emt 0:03:59] The position is
equal.} 11. Be2 {[%emt 0:11:06]} Rd8 {[%emt 0:14:01]} 12. Bf3 {[%emt 0:09:47]}
Nd5 {[%emt 0:14:52]} 13. Bg3 {[%emt 0:02:59] [#]} f6 $146 {[%emt 0:07:57]} ({
Predecessor:} 13... Bf6 14. O-O-O e5 15. Nc2 Be6 16. Rhe1 Bg5+ 17. Kb1 f6 18.
Bxe5 fxe5 19. Rxe5 Nf4 20. Rxg5 Rxd1+ 21. Bxd1 {1-0 (29) Zanina,M (2088)-Sadek,
S (2266) Hammamet 2020}) 14. O-O-O {[%emt 0:07:22][%cal Yd4f5]} Nb6 {[%emt 0:
00:00] White leaves nothing to chance now.} (14... e5 $14) 15. Nb3 $16 {
[%emt 0:13:39]} Rxd1+ {[%emt 0:03:58]} 16. Rxd1 {[%emt 0:00:06]} ({Much worse
is} 16. Bxd1 $6 Bd7 17. Be2 Nc5 $11) 16... e5 {[%emt 0:00:12]} 17. Nd6 {
[%emt 0:05:01] White is much more active.} Bxd6 {[%emt 0:03:23]} 18. Rxd6 {
[%emt 0:00:02]} Kf7 {[%emt 0:01:02]} 19. Rd8 {[%emt 0:01:47]} Rb8 {[%emt 0:00:
00]} 20. Rh8 {[%emt 0:03:35]} Be6 {[%emt 0:03:05]} 21. Rxb8 {[%emt 0:01:16]} ({
Resist} 21. Rxh7 $6 Nd7 $14) 21... Nxb8 {[%emt 0:00:02]} 22. Bxb7 {[%emt 0:00:
00]} Bd5 {[%emt 0:00:20]} 23. Nc5 {[%emt 0:02:36]} Ke7 {[%emt 0:01:13]} (23...
Bxb7 $142 24. Nxb7 N8d7) 24. Bxd5 $18 {[%emt 0:01:21]} Nxd5 {[%emt 0:00:01]
Endgame KBN-KNN} 25. c4 {[%emt 0:00:01]} Nb6 {[%emt 0:01:03]} 26. b3 {[%emt 0:
00:01]} Nc6 {[%emt 0:00:21]} 27. f4 {[%emt 0:00:07]} exf4 {[%emt 0:00:00]} 28.
Bxf4 {[%emt 0:00:01]} Nd7 $2 {[%emt 0:00:26] [#]} (28... Nc8 {was worth a try.}
29. g4 h6) 29. Nxd7 {[%emt 0:00:33]} Kxd7 {[%emt 0:00:01] KB-KN} 30. Kd2 {
[%emt 0:00:10]} a6 {[%emt 0:01:03]} 31. Kc3 {[%emt 0:00:15] White is clearly
winning.} Ne7 {[%emt 0:00:18]} 32. b4 {[%emt 0:00:44]} g5 {[%emt 0:00:18]} 33.
Be3 {[%emt 0:00:35]} Nf5 {[%emt 0:00:21]} 34. Bf2 {[%emt 0:00:00]} Nd6 {
[%emt 0:00:28] [#] aiming for ...Ne4+.} 35. Kd3 {[%emt 0:00:10] Inhibits Ne4.}
f5 {[%emt 0:00:19]} 36. a4 {[%emt 0:00:05]} Ne4 {[%emt 0:00:32]} 37. Be3 {
[%emt 0:00:32]} h6 {[%emt 0:00:18]} 38. g4 {[%emt 0:00:16]} Ke6 {[%emt 0:00:47]
} 39. gxf5+ {[%emt 0:00:13]} Kxf5 {[%emt 0:00:02]} 40. b5 {[%emt 0:00:06]} axb5
{[%emt 0:00:26]} 41. cxb5 {[%emt 0:30:11] Weighted Error Value: White=0.02 
(flawless) /Black=0.28 (precise)} 1-0

[Event "44th Chess Olympiad Open 2022"]
[Site "Chennai"]
[Date "2022.07.29"]
[Round "1.8"]
[White "Laohawirapap, Prin"]
[Black "Kuzubov, Yuriy"]
[Result "0-1"]
[WhiteElo "2230"]
[BlackElo "2642"]
[Annotator "TA"]
[PlyCount "48"]
[EventDate "2022.??.??"]
[TimeControl "60"]

{[%evp 13,48,3,14,7,11,20,16,-7,2,0,0,-42,-37,-88,-45,-33,-33,-31,-20,-126,-42,
-94,-104,-391,-389,-381,-375,-936,-889,-960,-961,-1032,-1010,-994,-1000,-1287,
-1296]} 1. e4 {[%emt 0:02:40]} e5 {[%emt 0:00:08]} 2. Nf3 {[%emt 0:00:19]} Nf6
{[%emt 0:00:07]} 3. Nxe5 {[%emt 0:01:13]} d6 {[%emt 0:00:06]} 4. Nf3 {[%emt 0:
00:00]} Nxe4 {[%emt 0:00:06]} 5. Nc3 {[%emt 0:00:05]} Nxc3 {[%emt 0:00:10]} 6.
dxc3 {[%emt 0:00:05][%cal Yd2c3,Yc3c4]} Be7 {[%emt 0:00:06]} 7. Be3 {[%emt 0:
00:40]} O-O {[%emt 0:00:25]} 8. Qd2 {[%emt 0:00:46] C42: Petroff Defence: 3
Nxe5 and unusual White 3rd moves.} Nd7 {[%emt 0:00:10]} 9. O-O-O {[%emt 0:00:
32]} c6 {[%emt 0:00:08]} 10. c4 {[%emt 0:22:29] The position is equal.} a6 $5 {
[%emt 0:02:16] A promising side line.} 11. Bf4 {[%emt 0:00:00]} Nc5 {[%emt 0:
02:39] [#]} 12. Bd3 $146 {[%emt 0:11:31]} ({Predecessor:} 12. Bxd6 Bxd6 13.
Qxd6 Qa5 14. Kb1 Bf5 15. Be2 Rfe8 16. Nd4 Rad8 17. Qf4 Bg6 18. Bf3 {0-1 (25)
Kislov,O (2249)-Burg,T (2514) Chess.com INT 2020}) 12... b5 {[%emt 0:12:24]}
13. Nd4 {[%emt 0:22:28]} ({White should try} 13. Rhe1 $15) 13... Bd7 {[%emt 0:
00:46]} 14. Rhe1 {[%emt 0:00:26]} bxc4 {[%emt 0:17:47]} 15. Bxc4 {[%emt 0:02:
04]} d5 {[%emt 0:00:08]} 16. Bf1 {[%emt 0:08:21]} (16. Bd3 $11) 16... Bf6 {
[%emt 0:02:17]} (16... Ne4 $17 17. Qe3 g5) 17. f3 {[%emt 0:02:10]} (17. Qb4 $15
Be7 18. Qc3) 17... Na4 $17 {[%emt 0:04:32] And now ...c5 would win.} ({But not
} 17... Qb6 $6 18. c3 $11) 18. Be5 $2 {[%emt 0:05:08] [#] This costs White the
game.} (18. c3 $17 {might work better.}) 18... Bxe5 $1 $19 {[%emt 0:00:07]} 19.
Rxe5 {[%emt 0:01:53]} Qb8 $1 {[%emt 0:00:07][%csl Ga4,Yb2,Ye5][%cal Rb8b2]} 20.
Qe3 $2 {[%emt 0:00:01]} (20. b3 Qxe5 21. bxa4) 20... Qxb2+ {[%emt 0:01:01]
Black is clearly winning.} 21. Kd2 {[%emt 0:00:04]} Rfe8 {[%emt 0:00:51]} 22.
Re1 {[%emt 0:01:11]} Rxe5 {[%emt 0:01:39]} 23. Qxe5 {[%emt 0:00:05]} Qb4+ {
[%emt 0:00:36]} 24. Kc1 {[%emt 0:00:33]} f6 {[%emt 0:00:00] Weighted Error
Value: White=1.16/Black=0.08 (flawless)} 0-1

[Event "44th Chess Olympiad Open 2022"]
[Site "Chennai"]
[Date "2022.07.29"]
[Round "1.8"]
[White "Jingjang, Shin"]
[Black "Onyshchuk, Volodymyr"]
[Result "0-1"]
[WhiteElo "1956"]
[BlackElo "2612"]
[Annotator "TA"]
[PlyCount "67"]
[EventDate "2022.??.??"]
[TimeControl "60"]

{[%evp 9,67,-51,16,18,31,24,29,24,29,33,20,36,38,0,-3,-24,17,-8,0,-30,-14,-30,
-8,-17,-23,-17,-18,-32,-24,-16,0,0,18,-11,-10,-27,-27,-27,-7,-18,-18,-12,-8,
-10,-18,-80,-70,-71,-69,-69,-90,-366,-351,-397,-380,-406,-325,-330,-289,-338]} 
1. d4 d6 2. Nf3 g6 3. Bg5 Bg7 4. Nbd2 h6 5. Bh4 Nc6 (5... g5 $1 $15 6. Bg3 g4)
6. c3 {A41:1 d4 d6: Tartakower System and Modern Defence.} f5 {Threatens to
win with ...g5.} 7. e3 Nf6 8. Bc4 {White has an edge.} e6 9. O-O {[#]} g5 $146
({Predecessor:} 9... Qe7 10. d5 exd5 11. Bxf6 Qxf6 12. Bxd5 Be6 13. Bxc6+ bxc6
14. Nd4 Bd7 15. Qb3 c5 {0-1 (38) Yordanov,V (1614)-Friedrichs,K (2298) Golden
Sands 2014}) 10. Bg3 O-O 11. Qc2 Nh5 12. Rad1 Qf6 13. a4 Ne7 14. Qb3 Kh8 15.
Be2 Qf7 16. h3 Nxg3 17. fxg3 Nd5 {[%cal Ye7d5,Yd5f6,Yf6e4,Ye4c5,Yc5a4,Ya4b2]}
18. c4 Nf6 19. c5 dxc5 20. Ne5 Qe8 21. dxc5 Ne4 22. Ndc4 {[%cal Yc5c6]} (22.
Nxe4 $5 {[%cal Re2b5]} Bxe5 23. Nd2 $11) 22... Nxc5 23. Qb4 Nxa4 {[%cal Ya7a5]
Strongly threatening ...a5!} 24. Nd6 cxd6 25. Bb5 {[#]} Qd8 26. Ng6+ Kg8 {
[%cal Ya4c5] White must now prevent ...Nc5!} 27. Nxf8 (27. Rxd6 $11 {keeps the
balance.} Qc7 28. Bxa4) 27... Nxb2 $17 28. Rxd6 Qxf8 29. Qd2 $1 Bf6 {[#]
Inhibits Rd8. Hoping for ...a6.} 30. Rc1 $2 {Loses the game.} (30. g4 $17)
30... a6 $19 31. Be2 Na4 32. Bf3 Nc3 33. Rd3 Nb5 34. Rd1 {Weighted Error Value:
White=0.30/Black=0.14 (very precise)} 0-1

[Event "44th Chess Olympiad Open 2022"]
[Site "Chennai"]
[Date "2022.07.29"]
[Round "1.9"]
[White "Svane, Rasmus"]
[Black "Abdelazeez, Mohamed Abdalla"]
[Result "1-0"]
[WhiteElo "2649"]
[BlackElo "2182"]
[Annotator "TA"]
[PlyCount "59"]
[EventDate "2022.??.??"]
[TimeControl "60"]

{[%evp 9,59,33,52,60,64,59,79,72,90,89,86,90,103,85,76,74,84,76,114,111,119,
124,147,147,181,181,191,175,210,198,226,151,135,110,155,163,134,139,201,199,
263,256,264,262,304,316,367,374,447,398,583,583]} 1. e4 {[%emt 0:00:07]} c5 {
[%emt 0:00:21]} 2. Nf3 {[%emt 0:00:28]} Nc6 {[%emt 0:01:35]} 3. d4 {[%emt 0:00:
00]} cxd4 {[%emt 0:00:17]} 4. Nxd4 {[%emt 0:00:05]} g6 {[%emt 0:06:38]} 5. c4 {
[%emt 0:02:38]} e5 {[%emt 0:04:06]} 6. Nc2 {[%emt 0:07:51] B36: Sicilian:
Maroczy Bind: Gurgenidze System.} d6 {[%emt 0:08:54]} 7. Nc3 {[%emt 0:00:07]}
Be6 {[%emt 0:00:14] [#]} 8. Be2 $146 {[%emt 0:00:46] White is better.} ({
Predecessor:} 8. Ne3 Bg7 9. Ned5 a6 10. Be3 Nge7 11. Bb6 Qc8 12. Nc7+ Kf8 13.
Nxa8 Qxa8 14. Qxd6 {1-0 (23) Kolar,T (2046)-Sukopcak,M (1834) Banska Stiavnica
2007}) 8... a6 {[%emt 0:01:58]} 9. Be3 {[%emt 0:06:55]} Nf6 {[%emt 0:00:24]}
10. Qd2 {[%emt 0:01:44]} Rc8 {[%emt 0:05:24]} 11. O-O {[%emt 0:05:48]} Bg7 {
[%emt 0:14:21]} 12. Rac1 {[%emt 0:19:55]} O-O {[%emt 0:05:03]} 13. Rfd1 {
[%emt 0:00:06]} Qc7 {[%emt 0:00:12]} 14. f3 {[%emt 0:08:35]} ({Reject} 14. Qxd6
$6 Nd4 15. Qxc7 Nxe2+ 16. Nxe2 Rxc7 $11) 14... Rfd8 {[%emt 0:16:50]} 15. Nd5 {
[%emt 0:00:24]} Bxd5 {[%emt 0:02:00]} 16. cxd5 {[%emt 0:00:07]} Nb8 {[%emt 0:
00:00]} 17. Na3 {[%emt 0:00:45]} Qe7 {[%emt 0:05:11]} 18. Nc4 {[%emt 0:00:18]}
Nh5 {[%emt 0:07:49]} 19. Bd3 {[%emt 0:15:33]} Nf4 {[%emt 0:01:37]} 20. g3 {
[%emt 0:01:50]} (20. Bxf4 exf4 21. Kh1 (21. Qxf4 b5 $11) 21... Nd7 $14) 20...
Nxd3 {[%emt 0:00:43]} 21. Qxd3 {[%emt 0:00:03]} Rf8 {[%emt 0:00:12]} 22. Qa3 $1
$36 {[%emt 0:02:59] White is really pushing.} Rcd8 {[%emt 0:00:27]} 23. Bd2 {
[%emt 0:01:44] Hoping for Bb4. White is much more active.} b5 {[%emt 0:00:42] 
[#]} (23... Rfe8 $16 {was called for.} 24. Ba5 Rd7) 24. Na5 $1 $18 {[%emt 0:00:
28]} f5 {[%emt 0:07:35] [#]} (24... Qd7 {was worth a try.} 25. Nc6 Rc8) 25. Nc6
$1 {[%emt 0:00:21]} Nxc6 {[%emt 0:00:09]} 26. dxc6 {[%emt 0:00:00]} fxe4 {
[%emt 0:01:58]} 27. fxe4 {[%emt 0:00:06]} Rf7 {[%emt 0:02:08]} 28. Qxa6 {
[%emt 0:07:04] Strongly threatening c7.} Qe6 {[%emt 0:02:39]} 29. Rf1 {[%emt 0:
02:49]} Rdf8 {[%emt 0:03:24]} (29... Rxf1+ $142 30. Kxf1 Rf8+ 31. Kg1 Qg4) 30.
Qxb5 {[%emt 0:01:20] Weighted Error Value: White=0.06 (flawless) / Black=0.31}
({Not} 30. c7 Rxf1+ 31. Rxf1 Rxf1+ 32. Kxf1 Qc4+ 33. Kf2 Qxc7 $16) 1-0

[Event "44th Chess Olympiad Open 2022"]
[Site "Chennai"]
[Date "2022.07.29"]
[Round "1.9"]
[White "Kollars, Dmitrij"]
[Black "Ahmed Hassan Ahmed"]
[Result "1-0"]
[WhiteElo "2648"]
[BlackElo "2114"]
[Annotator "TA"]
[PlyCount "63"]
[EventDate "2022.??.??"]
[TimeControl "60"]

{[%evp 9,63,39,42,53,63,39,28,6,10,0,0,0,11,0,0,0,0,0,25,0,0,-9,-16,-27,-17,
-20,-7,-41,-20,-28,0,-25,-25,-57,-44,-54,16,16,391,402,402,369,351,326,473,363,
940,1006,938,757,741,702,929,907,1676,1252]} 1. e4 {[%emt 0:00:07]} c5 {
[%emt 0:02:05]} 2. Nf3 {[%emt 0:00:14]} Nc6 {[%emt 0:03:04]} 3. Bb5 {[%emt 0:
00:00]} e5 {[%emt 0:03:23]} 4. O-O {[%emt 0:03:08]} Bd6 {[%emt 0:05:41]} 5. c3
{[%emt 0:01:05]} a6 {[%emt 0:02:22]} 6. Ba4 {[%emt 0:00:41] B30: Sicilian: 2...
Nc6 3 Bb5, lines without ...g6.} b5 {[%emt 0:04:55]} 7. Bc2 {[%emt 0:01:15]}
Nge7 {[%emt 0:13:00]} 8. d4 {[%emt 0:09:42] White has an edge.} (8. a4 $5 {
[%cal Ra4b5]}) 8... cxd4 {[%emt 0:01:50]} 9. cxd4 {[%emt 0:00:08]} Nxd4 {
[%emt 0:00:19]} 10. Nxd4 {[%emt 0:00:51]} exd4 {[%emt 0:00:04]} 11. Nd2 {
[%emt 0:08:53]} Qc7 {[%emt 0:14:11]} 12. Nf3 {[%emt 0:01:15] [#]} Bb7 $146 {
[%emt 0:06:12]} ({Predecessor:} 12... Nc6 13. Bb3 O-O 14. h3 Bc5 15. Bd5 Bb7
16. a3 a5 17. Ng5 g6 18. Qg4 h5 {1-0 (30) Mahdy,K (2376)-Hellmayr,A (2242)
Austria 2019}) 13. e5 {[%emt 0:09:05]} Bc5 {[%emt 0:07:13]} 14. Bf4 {[%emt 0:
00:00] White has compensation.} Qb6 {[%emt 0:06:20]} 15. Rc1 {[%emt 0:03:03]}
Rc8 {[%emt 0:02:49]} 16. h4 {[%emt 0:09:56]} h6 {[%emt 0:02:30]} 17. a3 {
[%emt 0:04:16]} Qe6 {[%emt 0:08:20]} 18. Qd3 {[%emt 0:13:10]} Qg4 {[%emt 0:02:
46]} 19. Bg3 {[%emt 0:00:48]} Bxf3 {[%emt 0:00:55]} 20. gxf3 {[%emt 0:00:04]
[%cal Yg2f3,Yf3f4,Yf4f5]} Qh3 {[%emt 0:00:42]} 21. Bb1 {[%emt 0:04:07]} g5 {
[%emt 0:00:56]} 22. h5 {[%emt 0:00:37][%cal Ye5e6] [#] Black must now prevent
e6!} Rg8 {[%emt 0:03:05]} (22... Qxh5 $2 23. e6 fxe6 {[#]} 24. Rxc5 $1 Rxc5 25.
Qxd4 $18) (22... Nd5 $1 $15 23. Qf5 Qxf5 24. Bxf5 Ke7) 23. Qe4 $11 {[%emt 0:03:
43] b4 is the strong threat.} g4 $2 {[%emt 0:01:33] Loses the game.} (23...
Qxh5 $2 24. b4 $18) (23... d3 $11 {and Black has nothing to worry.} 24. Qg4
Qxg4 25. fxg4 Bd4) 24. f4 $18 {[%emt 0:00:37] Strongly threatening b4.} Rc6 {
[%emt 0:03:51]} 25. Bd3 {[%emt 0:00:00]} Qxh5 {[%emt 0:02:00]} 26. f5 {[%emt 0:
00:35]} Bb6 {[%emt 0:02:25]} (26... Nxf5 $142 27. Qxf5 Qxf5 28. Bxf5 Be7) 27.
f6 {[%emt 0:02:28]} Re6 $2 {[%emt 0:00:44]} (27... Qg5) 28. Qa8+ {[%emt 0:04:
21] White is clearly winning.} Bd8 {[%emt 0:00:09]} 29. fxe7 {[%emt 0:00:09]}
Kxe7 {[%emt 0:00:19]} 30. Rc8 {[%emt 0:00:58]} Qg5 {[%emt 0:01:06]} 31. Qh1 {
[%emt 0:00:24] Hoping for Bh4.} Qd2 {[%emt 0:00:23]} 32. Bf5 {[%emt 0:01:43]
Weighted Error Value: White=0.19 (very precise) /Black=0.42} 1-0